[Event "Live Chess"]
[Site "Chess.com"]
[Date "2024.06.02"]
[Round "-"]
[White "Bradfield133"]
[Black "Tunyk_Vladyslav"]
[Result "0-1"]
[WhiteElo "1883"]
[BlackElo "2401"]
[TimeControl "300"]
[EndTime "1:46:31 PDT"]
[Termination "Tunyk_Vladyslav won by resignation"]

1. c4 {[%clk 0:04:57.5]} 1... e6 {[%clk 0:04:59.2]} 2. e4 {[%clk 0:04:55.5]}
2... d5 {[%clk 0:04:58.6]} 3. exd5 {[%clk 0:04:55.4]} 3... exd5 {[%clk
0:04:58.4]} 4. d4 {[%clk 0:04:54.4]} 4... c6 {[%clk 0:04:56.5]} 5. Nc3 {[%clk
0:04:53.3]} 5... Nf6 {[%clk 0:04:56.1]} 6. Nf3 {[%clk 0:04:51.7]} 6... Bd6
{[%clk 0:04:55.6]} 7. Bd3 {[%clk 0:04:49.5]} 7... dxc4 {[%clk 0:04:54.6]} 8.
Bxc4 {[%clk 0:04:48]} 8... O-O {[%clk 0:04:54.5]} 9. O-O {[%clk 0:04:46.2]} 9...
Bg4 {[%clk 0:04:54.1]} 10. Be3 {[%clk 0:04:43.4]} 10... Nbd7 {[%clk 0:04:53]}
11. h3 {[%clk 0:04:42]} 11... Bh5 {[%clk 0:04:52.1]} 12. g4 {[%clk 0:04:41.3]}
12... Bg6 {[%clk 0:04:51.4]} 13. Re1 {[%clk 0:04:32.4]} 13... Nb6 {[%clk
0:04:50.6]} 14. Bb3 {[%clk 0:04:28.7]} 14... Nbd5 {[%clk 0:04:49.8]} 15. Ne5
{[%clk 0:04:17.8]} 15... Nxc3 {[%clk 0:04:10]} 16. bxc3 {[%clk 0:04:15]} 16...
Bxe5 {[%clk 0:04:09.4]} 17. dxe5 {[%clk 0:04:12.7]} 17... Ne4 {[%clk 0:04:04.1]}
18. f4 {[%clk 0:03:30.4]} 18... h5 {[%clk 0:03:39.8]} 19. f5 {[%clk 0:03:15]}
19... Bh7 {[%clk 0:03:38.7]} 20. Qf3 {[%clk 0:03:07.5]} 20... Ng5 {[%clk
0:03:32.2]} 21. Bxg5 {[%clk 0:02:51]} 21... Qxg5 {[%clk 0:03:32.1]} 22. e6
{[%clk 0:02:42]} 22... fxe6 {[%clk 0:03:22.1]} 23. Rxe6 {[%clk 0:02:34.7]} 23...
Kh8 {[%clk 0:03:20.9]} 24. Qe3 {[%clk 0:01:54.1]} 24... Qh4 {[%clk 0:02:49.4]}
25. Qf2 {[%clk 0:01:52.2]} 25... Qxh3 {[%clk 0:02:46.7]} 26. Re3 {[%clk
0:01:37.5]} 26... Qxg4+ {[%clk 0:02:43.6]} 27. Rg3 {[%clk 0:01:36.3]} 27... Qxf5
{[%clk 0:02:42.7]} 28. Qd4 {[%clk 0:01:24.4]} 28... Qf6 {[%clk 0:02:37]} 29. Re1
{[%clk 0:01:08.4]} 29... Qxd4+ {[%clk 0:02:32.4]} 30. cxd4 {[%clk 0:01:06.7]}
30... Rae8 {[%clk 0:02:25.5]} 31. Rxe8 {[%clk 0:00:58.3]} 31... Rxe8 {[%clk
0:02:25.4]} 32. Rg5 {[%clk 0:00:57.2]} 32... g6 {[%clk 0:02:21.1]} 33. Bf7
{[%clk 0:00:54.6]} 33... Rf8 {[%clk 0:02:20.3]} 0-1

[Event "Live Chess"]
[Site "Chess.com"]
[Date "2024.06.02"]
[Round "-"]
[White "JohanKjeldahl"]
[Black "jimwad"]
[Result "1-0"]
[WhiteElo "1817"]
[BlackElo "1303"]
[TimeControl "300"]
[EndTime "1:46:36 PDT"]
[Termination "JohanKjeldahl won by resignation"]

1. e4 {[%clk 0:04:57]} 1... e5 {[%clk 0:04:58.9]} 2. Nf3 {[%clk 0:04:55.5]} 2...
Nc6 {[%clk 0:04:57.4]} 3. d4 {[%clk 0:04:54.2]} 3... d6 {[%clk 0:04:55.1]} 4.
Bc4 {[%clk 0:04:51.2]} 4... Nf6 {[%clk 0:04:53.4]} 5. dxe5 {[%clk 0:04:46.4]}
5... Nxe5 {[%clk 0:04:51.4]} 6. Nxe5 {[%clk 0:04:44.1]} 6... dxe5 {[%clk
0:04:50.5]} 7. Bxf7+ {[%clk 0:04:42.9]} 7... Ke7 {[%clk 0:04:46.1]} 8. Qxd8+
{[%clk 0:04:40.5]} 8... Kxd8 {[%clk 0:04:44.5]} 9. Nc3 {[%clk 0:04:37]} 9... Bd6
{[%clk 0:04:42.9]} 10. O-O {[%clk 0:04:34.4]} 10... Rf8 {[%clk 0:04:41.1]} 11.
Bb3 {[%clk 0:04:29.8]} 11... c6 {[%clk 0:04:33.4]} 12. Bg5 {[%clk 0:04:25.9]}
12... Kc7 {[%clk 0:04:31]} 13. Rad1 {[%clk 0:04:23.1]} 13... Be6 {[%clk
0:04:29.1]} 14. Bxe6 {[%clk 0:04:19.4]} 1-0

[Event "Live Chess"]
[Site "Chess.com"]
[Date "2024.06.02"]
[Round "-"]
[White "LL220284LL"]
[Black "Cimon"]
[Result "1-0"]
[WhiteElo "2499"]
[BlackElo "1815"]
[TimeControl "300"]
[EndTime "1:46:50 PDT"]
[Termination "LL220284LL won on time"]

1. g3 {[%clk 0:04:57.6]} 1... g6 {[%clk 0:04:57.9]} 2. Bg2 {[%clk 0:04:56.3]}
2... Nf6 {[%clk 0:04:56.7]} 3. Nf3 {[%clk 0:04:52.5]} 3... Bg7 {[%clk
0:04:55.4]} 4. O-O {[%clk 0:04:51.7]} 4... O-O {[%clk 0:04:52.8]} 5. b3 {[%clk
0:04:50.4]} 5... d6 {[%clk 0:04:50.7]} 6. Bb2 {[%clk 0:04:49.8]} 6... e5 {[%clk
0:04:48.3]} 7. d3 {[%clk 0:04:48.4]} 7... Nc6 {[%clk 0:04:45.7]} 8. c4 {[%clk
0:04:46.9]} 8... Bg4 {[%clk 0:04:39.9]} 9. Nbd2 {[%clk 0:04:45.3]} 9... Qd7
{[%clk 0:04:38.1]} 10. Re1 {[%clk 0:04:43.2]} 10... Bh3 {[%clk 0:04:36.7]} 11.
Bh1 {[%clk 0:04:41.6]} 11... Rae8 {[%clk 0:04:32.2]} 12. e3 {[%clk 0:04:40.3]}
12... d5 {[%clk 0:04:24.3]} 13. cxd5 {[%clk 0:04:37.1]} 13... Nxd5 {[%clk
0:04:22.8]} 14. Ne4 {[%clk 0:04:35.1]} 14... b6 {[%clk 0:04:11.6]} 15. Rc1
{[%clk 0:04:31.1]} 15... Bg4 {[%clk 0:03:58.3]} 16. a3 {[%clk 0:04:24]} 16... h6
{[%clk 0:03:53.2]} 17. Qc2 {[%clk 0:04:20.2]} 17... Nce7 {[%clk 0:03:41.7]} 18.
Nxe5 {[%clk 0:04:08.6]} 18... Bxe5 {[%clk 0:03:38.8]} 19. Bxe5 {[%clk
0:04:08.5]} 19... c5 {[%clk 0:03:32]} 20. Nf6+ {[%clk 0:04:01.5]} 20... Nxf6
{[%clk 0:03:30.1]} 21. Bxf6 {[%clk 0:04:01.4]} 21... Nd5 {[%clk 0:03:27.3]} 22.
Bb2 {[%clk 0:03:54.1]} 22... f6 {[%clk 0:03:16.6]} 23. Qc4 {[%clk 0:03:49]}
23... Be6 {[%clk 0:03:13.9]} 24. Qh4 {[%clk 0:03:45]} 24... Kg7 {[%clk
0:03:10.1]} 25. Qa4 {[%clk 0:03:27.6]} 25... Qxa4 {[%clk 0:02:24.7]} 26. bxa4
{[%clk 0:03:27.5]} 26... a5 {[%clk 0:02:22.8]} 27. d4 {[%clk 0:03:25.2]} 27...
Rc8 {[%clk 0:02:14.2]} 28. dxc5 {[%clk 0:03:22.8]} 28... bxc5 {[%clk 0:02:12.2]}
29. Red1 {[%clk 0:03:21.5]} 29... Nb6 {[%clk 0:02:06.4]} 30. Bc3 {[%clk
0:03:15]} 30... Nxa4 {[%clk 0:02:03]} 31. Bxa5 {[%clk 0:03:13.8]} 31... Bb3
{[%clk 0:02:00.6]} 32. Rd7+ {[%clk 0:03:11.3]} 32... Rf7 {[%clk 0:01:57.4]} 33.
Rxf7+ {[%clk 0:03:06.1]} 33... Kxf7 {[%clk 0:01:56.3]} 34. Bf3 {[%clk 0:02:52]}
34... c4 {[%clk 0:01:53.2]} 35. Bb4 {[%clk 0:02:47.3]} 35... Ke6 {[%clk
0:01:48.9]} 36. Kf1 {[%clk 0:02:44.4]} 36... Nb2 {[%clk 0:01:36.7]} 37. Be2
{[%clk 0:02:39.2]} 37... Na4 {[%clk 0:01:27.7]} 38. Ke1 {[%clk 0:02:35.6]} 38...
c3 {[%clk 0:01:23.2]} 39. Bd1 {[%clk 0:02:20.6]} 39... Bxd1 {[%clk 0:01:16.8]}
40. Kxd1 {[%clk 0:02:18.1]} 40... Kd5 {[%clk 0:01:09.5]} 41. Kc2 {[%clk
0:02:15.1]} 41... Kc4 {[%clk 0:01:07.9]} 42. Rd1 {[%clk 0:02:13.3]} 42... f5
{[%clk 0:00:36.8]} 43. Rd4+ {[%clk 0:02:05.9]} 43... Kb5 {[%clk 0:00:35.2]} 44.
Rd6 {[%clk 0:02:04]} 44... Rc6 {[%clk 0:00:29.1]} 45. Rd5+ {[%clk 0:01:59.2]}
45... Kb6 {[%clk 0:00:26.9]} 46. Rd3 {[%clk 0:01:38.2]} 46... g5 {[%clk
0:00:24.3]} 47. Rd5 {[%clk 0:01:34.6]} 47... f4 {[%clk 0:00:20.4]} 48. gxf4
{[%clk 0:01:32.4]} 48... gxf4 {[%clk 0:00:19.3]} 49. exf4 {[%clk 0:01:30.8]}
49... Rf6 {[%clk 0:00:18.1]} 50. f5 {[%clk 0:01:29.1]} 50... h5 {[%clk 0:00:12]}
51. Ra5 {[%clk 0:01:22.1]} 51... Nb2 {[%clk 0:00:06.7]} 52. Bxc3 {[%clk
0:01:21.3]} 52... Nc4 {[%clk 0:00:04.5]} 53. Bxf6 {[%clk 0:01:18.4]} 53... Nxa5
{[%clk 0:00:03.3]} 54. Bd8+ {[%clk 0:01:17.2]} 1-0

[Event "Live Chess"]
[Site "Chess.com"]
[Date "2024.06.02"]
[Round "-"]
[White "silunn"]
[Black "NAZRIZ1977"]
[Result "1-0"]
[WhiteElo "2211"]
[BlackElo "2124"]
[TimeControl "300"]
[EndTime "1:46:52 PDT"]
[Termination "silunn won by resignation"]

1. e4 {[%clk 0:04:59.5]} 1... d6 {[%clk 0:04:52]} 2. d4 {[%clk 0:04:58.4]} 2...
Nf6 {[%clk 0:04:51.4]} 3. Nc3 {[%clk 0:04:57.6]} 3... Nbd7 {[%clk 0:04:50.9]} 4.
Nf3 {[%clk 0:04:57]} 4... e5 {[%clk 0:04:50.3]} 5. dxe5 {[%clk 0:04:54.2]} 5...
dxe5 {[%clk 0:04:49.4]} 6. Bc4 {[%clk 0:04:53.7]} 6... h6 {[%clk 0:04:48.5]} 7.
Be3 {[%clk 0:04:51.2]} 7... c6 {[%clk 0:04:47.7]} 8. h3 {[%clk 0:04:50.5]} 8...
Be7 {[%clk 0:04:47.1]} 9. Qe2 {[%clk 0:04:47.5]} 9... Qc7 {[%clk 0:04:46.2]} 10.
O-O {[%clk 0:04:46.2]} 10... Nf8 {[%clk 0:04:41.7]} 11. a4 {[%clk 0:04:44.5]}
11... g5 {[%clk 0:04:40.6]} 12. Nh2 {[%clk 0:04:24.9]} 12... Ng6 {[%clk
0:04:38.2]} 13. Rad1 {[%clk 0:04:20.7]} 13... Rg8 {[%clk 0:04:36.9]} 14. Ng4
{[%clk 0:04:12.8]} 14... Nxg4 {[%clk 0:04:27]} 15. hxg4 {[%clk 0:04:11.6]} 15...
Nf4 {[%clk 0:04:26.6]} 16. Qf3 {[%clk 0:04:02.6]} 16... Bd7 {[%clk 0:04:24.7]}
17. g3 {[%clk 0:03:49.6]} 17... Qc8 {[%clk 0:04:21.8]} 18. Rxd7 {[%clk
0:03:37.7]} 18... Qd8 {[%clk 0:04:20.8]} 19. Rxd8+ {[%clk 0:03:36.1]} 1-0

[Event "Live Chess"]
[Site "Chess.com"]
[Date "2024.06.02"]
[Round "-"]
[White "uselessduffer"]
[Black "KeithArkell"]
[Result "1/2-1/2"]
[WhiteElo "2381"]
[BlackElo "2396"]
[TimeControl "300"]
[EndTime "1:47:02 PDT"]
[Termination "Game drawn by repetition"]

1. e4 {[%clk 0:04:53.9]} 1... c6 {[%clk 0:04:59.3]} 2. Nc3 {[%clk 0:04:52.2]}
2... d5 {[%clk 0:04:58.6]} 3. Nf3 {[%clk 0:04:51.9]} 3... Bg4 {[%clk 0:04:57.1]}
4. h3 {[%clk 0:04:50.7]} 4... Bxf3 {[%clk 0:04:56.3]} 5. Qxf3 {[%clk 0:04:50.5]}
5... dxe4 {[%clk 0:04:55.6]} 6. Nxe4 {[%clk 0:04:49.1]} 6... Nd7 {[%clk
0:04:55.1]} 7. d4 {[%clk 0:04:40.9]} 7... Ndf6 {[%clk 0:04:54.2]} 8. c3 {[%clk
0:04:36]} 8... Nxe4 {[%clk 0:04:53.1]} 9. Qxe4 {[%clk 0:04:35.6]} 9... Nf6
{[%clk 0:04:52.7]} 10. Qf3 {[%clk 0:04:31.8]} 10... e6 {[%clk 0:04:51.9]} 11.
Be2 {[%clk 0:04:26.2]} 11... Be7 {[%clk 0:04:50.9]} 12. a4 {[%clk 0:04:20.1]}
12... a5 {[%clk 0:04:49.3]} 13. O-O {[%clk 0:04:09.6]} 13... O-O {[%clk
0:04:48.3]} 14. Be3 {[%clk 0:04:05.4]} 14... Nd5 {[%clk 0:04:47.1]} 15. Bc4
{[%clk 0:03:53.4]} 15... Bg5 {[%clk 0:04:45.6]} 16. Bxd5 {[%clk 0:03:30.8]}
16... cxd5 {[%clk 0:04:45.5]} 17. Bxg5 {[%clk 0:03:29.8]} 17... Qxg5 {[%clk
0:04:44.5]} 18. Qe3 {[%clk 0:03:28.9]} 18... Qxe3 {[%clk 0:04:43.6]} 19. fxe3
{[%clk 0:03:28.8]} 19... Rfb8 {[%clk 0:04:41.8]} 20. b4 {[%clk 0:02:31.7]} 20...
Rc8 {[%clk 0:04:30.6]} 21. Ra3 {[%clk 0:02:21.7]} 21... g5 {[%clk 0:04:28.3]}
22. Rb1 {[%clk 0:02:12.3]} 22... Rc4 {[%clk 0:04:26.1]} 23. bxa5 {[%clk
0:02:00.9]} 23... Rxa5 {[%clk 0:04:24.8]} 24. Rxb7 {[%clk 0:01:58.9]} 24...
Rcxa4 {[%clk 0:04:23.4]} 25. Rxa4 {[%clk 0:01:57.8]} 25... Rxa4 {[%clk
0:04:22.9]} 26. Rb2 {[%clk 0:01:56.3]} 26... Ra3 {[%clk 0:04:21]} 27. Rc2 {[%clk
0:01:55.1]} 27... Kg7 {[%clk 0:04:20.6]} 28. Kf2 {[%clk 0:01:54.3]} 28... Ra4
{[%clk 0:04:19.5]} 29. Ke2 {[%clk 0:01:52.4]} 29... Kg6 {[%clk 0:04:19]} 30. Kd3
{[%clk 0:01:51.6]} 30... Kf5 {[%clk 0:04:17]} 31. Rf2+ {[%clk 0:01:50.3]} 31...
Kg6 {[%clk 0:04:16.1]} 32. e4 {[%clk 0:01:48.3]} 32... h5 {[%clk 0:04:02.8]} 33.
e5 {[%clk 0:01:43.8]} 33... h4 {[%clk 0:04:01.1]} 34. Rf6+ {[%clk 0:01:42.3]}
34... Kg7 {[%clk 0:04:00.5]} 35. Rf2 {[%clk 0:01:41.3]} 35... Ra1 {[%clk
0:03:59.6]} 36. Ke3 {[%clk 0:01:35.6]} 36... Rd1 {[%clk 0:03:57.6]} 37. Ke2
{[%clk 0:01:29.8]} 37... Rg1 {[%clk 0:03:52]} 38. Kd3 {[%clk 0:01:22.6]} 38...
Re1 {[%clk 0:03:49.1]} 39. Kd2 {[%clk 0:01:21.3]} 39... Re4 {[%clk 0:03:48]} 40.
Kd3 {[%clk 0:01:20.6]} 40... Rf4 {[%clk 0:03:32.8]} 41. Ke3 {[%clk 0:01:12.3]}
41... Rxf2 {[%clk 0:03:27.4]} 42. Kxf2 {[%clk 0:01:12.2]} 42... Kg6 {[%clk
0:03:23.7]} 43. g4 {[%clk 0:01:01.8]} 43... hxg3+ {[%clk 0:03:16.2]} 44. Kxg3
{[%clk 0:01:01.7]} 44... Kh5 {[%clk 0:03:12.6]} 45. Kg2 {[%clk 0:00:50.9]} 45...
Kh4 {[%clk 0:03:11.6]} 46. Kh2 {[%clk 0:00:50.3]} 46... g4 {[%clk 0:03:11]} 47.
hxg4 {[%clk 0:00:49.9]} 47... Kxg4 {[%clk 0:03:10.5]} 48. Kg2 {[%clk 0:00:49.7]}
48... Kf4 {[%clk 0:03:10]} 49. Kf2 {[%clk 0:00:49.1]} 49... Ke4 {[%clk
0:03:09.4]} 50. Ke2 {[%clk 0:00:48.6]} 50... Kf4 {[%clk 0:03:05.4]} 51. Kf2
{[%clk 0:00:48]} 51... Ke4 {[%clk 0:03:01.3]} 52. Ke2 {[%clk 0:00:47.1]} 52...
Kf4 {[%clk 0:03:00.8]} 53. Kf2 {[%clk 0:00:46.5]} 1/2-1/2

[Event "Live Chess"]
[Site "Chess.com"]
[Date "2024.06.02"]
[Round "-"]
[White "Crowded_House"]
[Black "Ferrarifan27"]
[Result "0-1"]
[WhiteElo "1668"]
[BlackElo "2142"]
[TimeControl "300"]
[EndTime "1:47:19 PDT"]
[Termination "Ferrarifan27 won by resignation"]

1. d4 {[%clk 0:04:58.7]} 1... Nf6 {[%clk 0:04:56.2]} 2. Bg5 {[%clk 0:04:58]}
2... d5 {[%clk 0:04:53.9]} 3. e3 {[%clk 0:04:57]} 3... Bf5 {[%clk 0:04:52.1]} 4.
Bd3 {[%clk 0:04:55.8]} 4... Bxd3 {[%clk 0:04:50.1]} 5. Qxd3 {[%clk 0:04:55.5]}
5... c6 {[%clk 0:04:49.5]} 6. Nd2 {[%clk 0:04:53.8]} 6... e6 {[%clk 0:04:47.6]}
7. c3 {[%clk 0:04:52.3]} 7... Be7 {[%clk 0:04:46.2]} 8. Ngf3 {[%clk 0:04:51.9]}
8... O-O {[%clk 0:04:43.5]} 9. O-O {[%clk 0:04:50.9]} 9... Nbd7 {[%clk
0:04:36.5]} 10. Rfe1 {[%clk 0:04:49.7]} 10... h6 {[%clk 0:04:34.6]} 11. Bh4
{[%clk 0:04:48.3]} 11... Re8 {[%clk 0:04:20.5]} 12. e4 {[%clk 0:04:44.3]} 12...
dxe4 {[%clk 0:04:18.5]} 13. Nxe4 {[%clk 0:04:42.3]} 13... Nxe4 {[%clk
0:04:17.7]} 14. Bxe7 {[%clk 0:04:41.4]} 14... Nxf2 {[%clk 0:04:06.1]} 15. Kxf2
{[%clk 0:04:41.1]} 15... Qxe7 {[%clk 0:04:04.9]} 16. Re2 {[%clk 0:04:27.8]}
16... Rad8 {[%clk 0:04:01.9]} 17. Qc2 {[%clk 0:04:23.1]} 17... Qf6 {[%clk
0:03:59.7]} 18. Qe4 {[%clk 0:04:12.9]} 18... e5 {[%clk 0:03:47.5]} 19. dxe5
{[%clk 0:03:43]} 19... Nxe5 {[%clk 0:03:44.9]} 20. Qc2 {[%clk 0:03:22.6]} 20...
Ng4+ {[%clk 0:03:36.3]} 21. Kg1 {[%clk 0:03:17.4]} 21... Rxe2 {[%clk 0:03:31]}
22. Qxe2 {[%clk 0:03:15.8]} 22... Qd6 {[%clk 0:03:20.7]} 23. g3 {[%clk
0:03:02.8]} 23... Qc5+ {[%clk 0:03:18.7]} 24. Kg2 {[%clk 0:02:55.5]} 24... Qe3
{[%clk 0:03:11.1]} 25. Qxe3 {[%clk 0:02:49.2]} 25... Nxe3+ {[%clk 0:03:11]} 26.
Kf2 {[%clk 0:02:45.9]} 26... Nc4 {[%clk 0:03:09.4]} 27. b3 {[%clk 0:02:42.4]}
27... Nd2 {[%clk 0:03:05.5]} 28. Ke3 {[%clk 0:02:25.9]} 28... Nxf3 {[%clk
0:03:03.3]} 29. Kxf3 {[%clk 0:02:24.9]} 29... Rd3+ {[%clk 0:03:02.9]} 30. Ke4
{[%clk 0:02:13.7]} 30... Rxc3 {[%clk 0:03:01.6]} 31. Rd1 {[%clk 0:02:08.8]}
31... Rc2 {[%clk 0:02:59.9]} 32. Rd8+ {[%clk 0:02:05.8]} 32... Kh7 {[%clk
0:02:58.6]} 33. Rd7 {[%clk 0:02:05]} 33... Rxh2 {[%clk 0:02:56.1]} 34. Rxf7
{[%clk 0:02:01.3]} 34... Rxa2 {[%clk 0:02:54.9]} 35. Rxb7 {[%clk 0:01:59.7]}
35... Kg6 {[%clk 0:02:46.9]} 36. Rc7 {[%clk 0:01:57]} 36... Ra6 {[%clk
0:02:42.4]} 37. Kd4 {[%clk 0:01:50]} 37... Rb6 {[%clk 0:02:37.8]} 38. Kc5 {[%clk
0:01:46.7]} 38... Rxb3 {[%clk 0:02:35.1]} 39. Rxc6+ {[%clk 0:01:45.5]} 39... Kg5
{[%clk 0:02:31.5]} 40. Ra6 {[%clk 0:01:37.3]} 40... Rxg3 {[%clk 0:02:28.3]} 41.
Rxa7 {[%clk 0:01:36.7]} 41... g6 {[%clk 0:02:26.4]} 42. Kd4 {[%clk 0:01:31.6]}
42... Rf3 {[%clk 0:02:24.8]} 43. Ke4 {[%clk 0:01:28.8]} 43... Rf5 {[%clk
0:02:22.9]} 44. Ra1 {[%clk 0:01:26.8]} 44... h5 {[%clk 0:02:21.1]} 45. Rg1+
{[%clk 0:01:25.8]} 45... Kf6 {[%clk 0:02:19.8]} 46. Rc1 {[%clk 0:01:24.1]} 46...
h4 {[%clk 0:02:17.5]} 47. Rc6+ {[%clk 0:01:23.4]} 47... Kg5 {[%clk 0:02:16.2]}
48. Rc8 {[%clk 0:01:20.6]} 48... h3 {[%clk 0:02:13.2]} 49. Rh8 {[%clk
0:01:19.3]} 49... Kg4 {[%clk 0:02:12.4]} 50. Rh6 {[%clk 0:01:16.7]} 50... Rf4+
{[%clk 0:02:04.1]} 51. Ke3 {[%clk 0:01:14.8]} 51... g5 {[%clk 0:02:02.5]} 52.
Ke2 {[%clk 0:01:09.5]} 52... Kg3 {[%clk 0:01:59.7]} 53. Rg6 {[%clk 0:01:05.3]}
53... g4 {[%clk 0:01:58.8]} 54. Rb6 {[%clk 0:01:03.2]} 54... h2 {[%clk
0:01:56.6]} 55. Rb1 {[%clk 0:01:01.8]} 55... Kg2 {[%clk 0:01:54.3]} 0-1

[Event "Live Chess"]
[Site "Chess.com"]
[Date "2024.06.02"]
[Round "-"]
[White "juniortay"]
[Black "Queensandpawns"]
[Result "1-0"]
[WhiteElo "2384"]
[BlackElo "2267"]
[TimeControl "300"]
[EndTime "1:47:21 PDT"]
[Termination "juniortay won by checkmate"]

1. e4 {[%clk 0:04:59]} 1... e5 {[%clk 0:04:59.5]} 2. Nc3 {[%clk 0:04:57.8]} 2...
Nf6 {[%clk 0:04:59.4]} 3. f4 {[%clk 0:04:56.7]} 3... d5 {[%clk 0:04:57.6]} 4.
fxe5 {[%clk 0:04:55.9]} 4... Nxe4 {[%clk 0:04:57]} 5. d3 {[%clk 0:04:55.3]} 5...
Nxc3 {[%clk 0:04:55.8]} 6. bxc3 {[%clk 0:04:55.2]} 6... c5 {[%clk 0:04:55.6]} 7.
Nf3 {[%clk 0:04:54.5]} 7... Nc6 {[%clk 0:04:55]} 8. Be2 {[%clk 0:04:51.8]} 8...
Be6 {[%clk 0:04:54.1]} 9. O-O {[%clk 0:04:50.9]} 9... Be7 {[%clk 0:04:53.8]} 10.
Qe1 {[%clk 0:04:46.6]} 10... O-O {[%clk 0:04:53.1]} 11. Qg3 {[%clk 0:04:45.4]}
11... Re8 {[%clk 0:04:50.6]} 12. Ng5 {[%clk 0:04:39.8]} 12... d4 {[%clk
0:04:45.6]} 13. Nxe6 {[%clk 0:04:26.9]} 13... fxe6 {[%clk 0:04:45.5]} 14. Bh5
{[%clk 0:04:19.3]} 14... Rf8 {[%clk 0:04:43.8]} 15. Bh6 {[%clk 0:04:13.2]} 15...
Rxf1+ {[%clk 0:04:30.5]} 16. Rxf1 {[%clk 0:04:10.3]} 16... Bf8 {[%clk
0:04:30.4]} 17. Rf7 {[%clk 0:03:55.2]} 17... Qb6 {[%clk 0:04:17.6]} 18. Rxg7+
{[%clk 0:03:51.8]} 18... Kh8 {[%clk 0:04:13.2]} 19. Rg8# {[%clk 0:03:50.8]} 1-0

[Event "Live Chess"]
[Site "Chess.com"]
[Date "2024.06.02"]
[Round "-"]
[White "upoe610"]
[Black "chessgoatpawel"]
[Result "1-0"]
[WhiteElo "2194"]
[BlackElo "2057"]
[TimeControl "300"]
[EndTime "1:47:33 PDT"]
[Termination "upoe610 won by resignation"]

1. c4 {[%clk 0:04:54.7]} 1... Nf6 {[%clk 0:04:58]} 2. g3 {[%clk 0:04:53.5]} 2...
g6 {[%clk 0:04:57.2]} 3. Bg2 {[%clk 0:04:52.6]} 3... Bg7 {[%clk 0:04:56.8]} 4.
Nf3 {[%clk 0:04:22.4]} 4... O-O {[%clk 0:04:55]} 5. Nc3 {[%clk 0:04:19.4]} 5...
d6 {[%clk 0:04:52.9]} 6. O-O {[%clk 0:04:18.3]} 6... e5 {[%clk 0:04:50.9]} 7. d4
{[%clk 0:04:16.9]} 7... Nbd7 {[%clk 0:04:33]} 8. e4 {[%clk 0:04:15.2]} 8... exd4
{[%clk 0:04:30.6]} 9. Nxd4 {[%clk 0:04:14.5]} 9... Re8 {[%clk 0:04:30.1]} 10.
Re1 {[%clk 0:04:10.9]} 10... Nc5 {[%clk 0:04:27.9]} 11. h3 {[%clk 0:04:06.1]}
11... Ne6 {[%clk 0:04:24.8]} 12. Nxe6 {[%clk 0:04:01.5]} 12... Bxe6 {[%clk
0:04:24.7]} 13. b3 {[%clk 0:04:00.2]} 13... Nxe4 {[%clk 0:04:18.3]} 14. Nxe4
{[%clk 0:03:59]} 14... Bxa1 {[%clk 0:04:15.8]} 15. Bg5 {[%clk 0:03:57.6]} 15...
f6 {[%clk 0:04:04.2]} 16. Qxa1 {[%clk 0:03:52.6]} 16... fxg5 {[%clk 0:04:02.6]}
17. Nf6+ {[%clk 0:03:51.8]} 17... Kf7 {[%clk 0:04:01.4]} 18. Nxe8 {[%clk
0:03:48.7]} 18... Qxe8 {[%clk 0:04:00.9]} 19. Bd5 {[%clk 0:03:47]} 19... Bxd5
{[%clk 0:03:45.3]} 20. Rxe8 {[%clk 0:03:45.2]} 20... Rxe8 {[%clk 0:03:45.2]} 21.
cxd5 {[%clk 0:03:44]} 1-0

[Event "Live Chess"]
[Site "Chess.com"]
[Date "2024.06.02"]
[Round "-"]
[White "elephantgerrald"]
[Black "CarmelJane"]
[Result "0-1"]
[WhiteElo "852"]
[BlackElo "2049"]
[TimeControl "300"]
[EndTime "1:47:49 PDT"]
[Termination "CarmelJane won on time"]

1. e4 {[%clk 0:04:55.3]} 1... e5 {[%clk 0:04:57.4]} 2. Nf3 {[%clk 0:04:53.4]}
2... Nc6 {[%clk 0:04:56.1]} 3. Bc4 {[%clk 0:04:49.2]} 3... Bc5 {[%clk
0:04:54.5]} 4. O-O {[%clk 0:04:47.6]} 4... d6 {[%clk 0:04:50.7]} 5. Bd5 {[%clk
0:04:39.7]} 5... Nf6 {[%clk 0:04:45.6]} 6. Nc3 {[%clk 0:04:38.1]} 6... O-O
{[%clk 0:04:37.5]} 7. d3 {[%clk 0:04:35.5]} 7... h6 {[%clk 0:04:34.3]} 8. Bxh6
{[%clk 0:03:53.9]} 8... gxh6 {[%clk 0:04:26.6]} 9. Qd2 {[%clk 0:03:37.7]} 9...
Kg7 {[%clk 0:04:15.9]} 10. Nh4 {[%clk 0:03:16.1]} 10... Nxd5 {[%clk 0:04:13.6]}
11. exd5 {[%clk 0:03:11.2]} 11... Qxh4 {[%clk 0:04:08.6]} 12. g3 {[%clk
0:02:52.6]} 12... Qg5 {[%clk 0:04:02.8]} 13. Qxg5+ {[%clk 0:02:21.8]} 13... hxg5
{[%clk 0:04:02.7]} 14. h4 {[%clk 0:02:19.6]} 14... Nd4 {[%clk 0:04:00.1]} 15.
Ne4 {[%clk 0:02:18.2]} 15... g4 {[%clk 0:03:57]} 16. Nxc5 {[%clk 0:01:57.1]}
16... dxc5 {[%clk 0:03:54.1]} 17. c3 {[%clk 0:01:40.8]} 17... Nf3+ {[%clk
0:03:51.6]} 18. Kg2 {[%clk 0:01:39.4]} 18... Bf5 {[%clk 0:03:47.4]} 19. h5
{[%clk 0:01:36]} 19... Bxd3 {[%clk 0:03:45.1]} 20. Rfe1 {[%clk 0:01:12.2]} 20...
Rh8 {[%clk 0:03:39.5]} 21. Re3 {[%clk 0:00:41.3]} 21... e4 {[%clk 0:03:32.8]}
0-1

[Event "Live Chess"]
[Site "Chess.com"]
[Date "2024.06.02"]
[Round "-"]
[White "RichardABates"]
[Black "seasidecastle27"]
[Result "1-0"]
[WhiteElo "2368"]
[BlackElo "1932"]
[TimeControl "300"]
[EndTime "1:48:17 PDT"]
[Termination "RichardABates won by resignation"]

1. d4 {[%clk 0:04:58.2]} 1... d5 {[%clk 0:04:58]} 2. c4 {[%clk 0:04:57]} 2...
dxc4 {[%clk 0:04:57.1]} 3. e4 {[%clk 0:04:54.9]} 3... e5 {[%clk 0:04:54.1]} 4.
Nf3 {[%clk 0:04:52.9]} 4... exd4 {[%clk 0:04:51.8]} 5. Bxc4 {[%clk 0:04:51.6]}
5... Nc6 {[%clk 0:04:50.1]} 6. O-O {[%clk 0:04:49.9]} 6... Be7 {[%clk
0:04:48.8]} 7. Qb3 {[%clk 0:04:43.8]} 7... Nf6 {[%clk 0:04:37.4]} 8. e5 {[%clk
0:04:40.2]} 8... Ng4 {[%clk 0:04:28.4]} 9. Bxf7+ {[%clk 0:04:35.7]} 9... Kf8
{[%clk 0:04:27.1]} 10. Bf4 {[%clk 0:04:30.4]} 10... Na5 {[%clk 0:03:37.5]} 11.
Qd5 {[%clk 0:04:28.6]} 11... Qxd5 {[%clk 0:03:33.6]} 12. Bxd5 {[%clk 0:04:25.6]}
12... c6 {[%clk 0:03:32.1]} 13. Be4 {[%clk 0:04:23.4]} 13... Nc4 {[%clk
0:03:28.7]} 14. Nbd2 {[%clk 0:04:18.9]} 14... Nxb2 {[%clk 0:03:19.9]} 15. Rab1
{[%clk 0:04:15.5]} 15... Na4 {[%clk 0:03:17.7]} 16. h3 {[%clk 0:04:12.7]} 16...
Nh6 {[%clk 0:03:14.3]} 17. g4 {[%clk 0:04:11]} 17... Nf7 {[%clk 0:03:05.3]} 18.
Bf5 {[%clk 0:04:08.5]} 18... b5 {[%clk 0:02:58]} 19. Rfc1 {[%clk 0:04:01.3]}
19... Bb7 {[%clk 0:02:55.7]} 20. Nxd4 {[%clk 0:03:58.3]} 20... Nc3 {[%clk
0:02:51.7]} 21. Rxc3 {[%clk 0:03:56.3]} 1-0